[Event "FIDE U16 Olympiad_boards_81-124"]
[Site "Eindhoven, Netherlands"]
[Date "2023.08.14"]
[Round "3.6"]
[White "Savitskiy, Vladimir"]
[Black "Teh, Rui Gen"]
[Result "1-0"]
[TimeControl "45min+10sec"]
[WhiteElo "1513"]
[BlackElo "1724"]

1. d4 {[%clk 00:45:14]} {[%emt 00:00:06]} Nf6 {[%clk 00:45:11]} {[%emt
00:00:09]} 2. Nc3 {[%clk 00:45:22]} {[%emt 00:00:02]} d5 {[%clk 00:45:04]}
{[%emt 00:00:16]} 3. Bf4 {[%clk 00:45:30]} {[%emt 00:00:03]} c5 {[%clk
00:44:47]} {[%emt 00:00:27]} 4. e4 {[%clk 00:45:39]} {[%emt 00:00:01]} Nxe4
{[%clk 00:44:30]} {[%emt 00:00:27]} 5. Nxe4 {[%clk 00:45:43]} {[%emt 00:00:06]}
dxe4 {[%clk 00:44:38]} {[%emt 00:00:03]} 6. dxc5 {[%clk 00:45:48]} {[%emt
00:00:04]} Qa5+ {[%clk 00:44:46]} {[%emt 00:00:01]} 7. c3 {[%clk 00:45:57]}
Qxc5 {[%clk 00:44:55]} {[%emt 00:00:02]} 8. Qa4+ {[%clk 00:46:05]} {[%emt
00:00:01]} Nc6 {[%clk 00:45:04]} {[%emt 00:00:02]} 9. Qxe4 {[%clk 00:46:14]}
{[%emt 00:00:01]} g6 {[%clk 00:45:08]} {[%emt 00:00:06]} 10. Nf3 {[%clk
00:46:21]} {[%emt 00:00:03]} Bg7 {[%clk 00:45:17]} {[%emt 00:00:02]} 11. Qe3
{[%clk 00:46:29]} {[%emt 00:00:01]} Qxe3+ {[%clk 00:44:58]} {[%emt 00:00:29]}
12. Bxe3 {[%clk 00:46:37]} {[%emt 00:00:02]} O-O {[%clk 00:45:02]} {[%emt
00:00:05]} 13. Be2 {[%clk 00:46:46]} {[%emt 00:00:02]} Be6 {[%clk 00:41:40]}
{[%emt 00:03:32]} 14. O-O {[%clk 00:46:33]} {[%emt 00:00:23]} Rfd8 {[%clk
00:41:23]} {[%emt 00:00:26]} 15. Rfd1 {[%clk 00:43:47]} {[%emt 00:02:55]} Bf6
{[%clk 00:37:56]} {[%emt 00:03:39]} 16. Nd2 {[%clk 00:41:39]} {[%emt 00:02:18]}
Bd5 {[%clk 00:32:52]} {[%emt 00:05:14]} 17. Nb3 {[%clk 00:39:36]} {[%emt
00:02:13]} b6 {[%clk 00:29:56]} {[%emt 00:03:07]} 18. Ba6 {[%clk 00:33:49]}
{[%emt 00:05:55]} Ne5 {[%clk 00:28:04]} {[%emt 00:02:02]} 19. h3 {[%clk
00:29:32]} {[%emt 00:04:27]} Bc4 {[%clk 00:26:09]} {[%emt 00:02:06]} 20. Bb7
{[%clk 00:29:39]} {[%emt 00:00:03]} Rab8 {[%clk 00:26:16]} {[%emt 00:00:03]} 21.
Be4 {[%clk 00:29:46]} {[%emt 00:00:03]} Bd3 {[%clk 00:20:42]} {[%emt 00:05:44]}
22. Bxd3 {[%clk 00:29:37]} {[%emt 00:00:19]} Rxd3 {[%clk 00:20:16]} {[%emt
00:00:36]} 23. Bd4 {[%clk 00:23:48]} {[%emt 00:06:00]} Rxd1+ {[%clk 00:17:03]}
{[%emt 00:03:23]} 24. Rxd1 {[%clk 00:23:56]} {[%emt 00:00:02]} Rd8 {[%clk
00:17:11]} 25. Nd2 {[%clk 00:21:50]} {[%emt 00:02:16]} Nd3 {[%clk 00:11:57]}
{[%emt 00:05:24]} 26. Bxf6 {[%clk 00:21:57]} {[%emt 00:00:03]} Nxb2 {[%clk
00:12:06]} 27. Bxe7 {[%clk 00:22:03]} {[%emt 00:00:04]} Rd7 {[%clk 00:12:16]}
28. Re1 {[%clk 00:22:09]} {[%emt 00:00:04]} Rxd2 {[%clk 00:12:24]} {[%emt
00:00:01]} 29. Bf6 {[%clk 00:22:18]} {[%emt 00:00:01]} Rd1 {[%clk 00:12:33]}
{[%emt 00:00:01]} 30. Rxd1 {[%clk 00:22:18]} {[%emt 00:00:10]} Nxd1 {[%clk
00:12:42]} 31. c4 {[%clk 00:22:27]} {[%emt 00:00:01]} Kf8 {[%clk 00:11:06]}
{[%emt 00:01:46]} 32. Kf1 {[%clk 00:22:34]} {[%emt 00:00:04]} Ke8 {[%clk
00:11:11]} {[%emt 00:00:04]} 33. Ke1 {[%clk 00:22:43]} {[%emt 00:00:01]} Nxf2
{[%clk 00:10:53]} {[%emt 00:00:28]} 34. Kxf2 {[%clk 00:22:52]} {[%emt
00:00:01]} Kd7 {[%clk 00:11:02]} {[%emt 00:00:01]} 35. Ke3 {[%clk 00:23:00]}
{[%emt 00:00:02]} Ke6 {[%emt 00:00:07]} 36. Bd4 {[%clk 00:23:09]} {[%emt
00:00:01]} g5 {[%clk 00:11:08]} {[%emt 00:00:07]} 37. g4 {[%clk 00:23:17]}
{[%emt 00:00:02]} f5 {[%clk 00:11:17]} 38. a4 {[%emt 00:00:22]} fxg4 {[%clk
00:11:22]} {[%emt 00:00:04]} 39. hxg4 {[%clk 00:23:14]} {[%emt 00:00:01]} Ke7
{[%clk 00:11:29]} {[%emt 00:00:05]} 40. Ke4 {[%clk 00:23:22]} {[%emt 00:00:01]}
Ke6 {[%emt 00:00:03]} 41. Be5 {[%emt 00:00:13]} Kd7 {[%clk 00:11:28]} {[%emt
00:00:12]} 42. Kf5 {[%clk 00:23:32]} {[%emt 00:00:03]} Kc6 {[%clk 00:11:38]} 43.
Bd4 {[%clk 00:23:41]} a6 {[%clk 00:11:41]} {[%emt 00:00:07]} 44. Kxg5 {[%clk
00:23:49]} {[%emt 00:00:02]} b5 {[%clk 00:11:50]} 45. cxb5+ {[%clk 00:23:55]}
{[%emt 00:00:04]} axb5 {[%clk 00:11:59]} 46. axb5+ {[%clk 00:24:04]} {[%emt
00:00:01]} Kxb5 {[%clk 00:12:08]} 47. Kh6 {[%clk 00:24:13]} {[%emt 00:00:01]}
Kc4 {[%clk 00:12:17]} {[%emt 00:00:01]} 48. Bf6 {[%clk 00:24:22]} Kd5 {[%clk
00:12:17]} {[%emt 00:00:10]} 49. Kxh7 {[%clk 00:24:30]} {[%emt 00:00:02]} 1-0

[Event "FIDE U16 Olympiad_boards_81-124"]
[Site "Eindhoven, Netherlands"]
[Date "2023.08.14"]
[Round "3.7"]
[White "Hu, Yifei"]
[Black "Momyn, Madina"]
[Result "0-1"]
[TimeControl "45min+10sec"]
[WhiteElo "1825"]
[BlackElo "1469"]

1. d4 {[%clk 00:45:20]} {[%emt 00:25:14]} d5 {[%clk 00:45:18]} {[%emt
00:00:03]} 2. c4 {[%clk 00:45:28]} {[%emt 00:00:01]} e5 {[%clk 00:45:27]}
{[%emt 00:00:01]} 3. dxe5 {[%clk 00:45:31]} {[%emt 00:00:07]} d4 {[%clk
00:45:36]} {[%emt 00:00:01]} 4. Nf3 {[%clk 00:45:34]} {[%emt 00:00:06]} Nc6
{[%clk 00:45:45]} {[%emt 00:00:01]} 5. a3 {[%clk 00:45:40]} {[%emt 00:00:04]}
Nge7 {[%clk 00:45:51]} {[%emt 00:00:04]} 6. e3 {[%clk 00:45:47]} {[%emt
00:00:03]} Bg4 {[%clk 00:45:59]} {[%emt 00:00:02]} 7. Be2 {[%clk 00:45:46]}
{[%emt 00:00:11]} dxe3 {[%clk 00:35:33]} {[%emt 00:10:37]} 8. Qxd8+ {[%clk
00:45:24]} {[%emt 00:00:32]} Rxd8 {[%clk 00:35:35]} {[%emt 00:00:07]} 9. Bxe3
{[%clk 00:45:29]} {[%emt 00:00:04]} Ng6 {[%clk 00:35:33]} {[%emt 00:00:12]} 10.
Nc3 {[%clk 00:44:10]} {[%emt 00:01:29]} a6 {[%clk 00:29:36]} {[%emt 00:06:08]}
11. Nd5 {[%clk 00:42:51]} {[%emt 00:01:30]} Kd7 {[%clk 00:28:56]} {[%emt
00:00:49]} 12. Rd1 {[%clk 00:41:06]} {[%emt 00:01:55]} Kc8 {[%clk 00:28:27]}
{[%emt 00:00:39]} 13. Ng5 {[%clk 00:41:10]} {[%emt 00:00:06]} Bxe2 {[%clk
00:23:54]} {[%emt 00:04:42]} 14. Kxe2 {[%clk 00:41:17]} {[%emt 00:00:03]} Ngxe5
{[%clk 00:22:55]} {[%emt 00:01:10]} 15. f4 {[%clk 00:27:47]} {[%emt 00:13:40]}
h6 {[%clk 00:22:16]} {[%emt 00:00:49]} 16. fxe5 {[%clk 00:27:52]} {[%emt
00:00:05]} hxg5 {[%clk 00:22:24]} {[%emt 00:00:02]} 17. Bxg5 {[%clk 00:28:01]}
Re8 {[%clk 00:22:30]} {[%emt 00:00:04]} 18. Kd3 {[%clk 00:27:49]} {[%emt
00:00:23]} Nxe5+ {[%clk 00:21:25]} {[%emt 00:01:15]} 19. Kc3 {[%clk 00:27:56]}
{[%emt 00:00:03]} f6 {[%clk 00:19:37]} {[%emt 00:01:57]} 20. Bf4 {[%clk
00:27:55]} {[%emt 00:00:11]} c6 {[%clk 00:18:41]} {[%emt 00:01:06]} 21. Ne3
{[%clk 00:26:23]} {[%emt 00:01:42]} Ng6 {[%clk 00:18:36]} {[%emt 00:00:14]} 22.
Nd5 {[%clk 00:23:12]} {[%emt 00:03:23]} cxd5 {[%clk 00:18:35]} {[%emt
00:00:11]} 23. Bg3 {[%clk 00:23:20]} {[%emt 00:00:01]} dxc4 {[%clk 00:18:09]}
{[%emt 00:00:36]} 24. Kxc4 {[%clk 00:23:29]} {[%emt 00:00:01]} Ne5+ {[%clk
00:18:14]} {[%emt 00:00:05]} 25. Kb3 {[%clk 00:23:38]} {[%emt 00:00:01]} Kb8
{[%clk 00:18:09]} {[%emt 00:00:16]} 26. Rhe1 {[%clk 00:23:41]} {[%emt
00:00:06]} Bc5 {[%clk 00:17:39]} {[%emt 00:00:40]} 27. Rd5 {[%clk 00:23:44]}
{[%emt 00:00:07]} Bb6 {[%clk 00:17:45]} {[%emt 00:00:03]} 28. Rd2 {[%clk
00:23:32]} {[%emt 00:00:23]} Ka7 {[%clk 00:17:28]} {[%emt 00:00:28]} 29. Rde2
{[%clk 00:23:29]} {[%emt 00:00:12]} Re7 {[%clk 00:17:25]} {[%emt 00:00:11]} 30.
h3 {[%clk 00:23:29]} {[%emt 00:00:12]} Rhe8 {[%clk 00:17:34]} {[%emt 00:00:02]}
31. Bf2 {[%clk 00:22:24]} {[%emt 00:01:15]} Bxf2 {[%clk 00:17:32]} {[%emt
00:00:12]} 32. Rxf2 {[%clk 00:22:32]} Nd3 {[%clk 00:17:39]} {[%emt 00:00:03]}
33. Rxe7 {[%clk 00:22:40]} {[%emt 00:00:03]} Rxe7 {[%clk 00:17:48]} {[%emt
00:00:01]} 34. Rf3 {[%clk 00:22:45]} {[%emt 00:00:04]} Ne5 {[%clk 00:17:43]}
{[%emt 00:00:15]} 35. Rg3 {[%clk 00:22:53]} {[%emt 00:00:03]} Rd7 {[%clk
00:17:52]} {[%emt 00:00:01]} 36. Kc3 {[%clk 00:22:57]} {[%emt 00:00:06]} Kb6
{[%clk 00:17:59]} {[%emt 00:00:02]} 37. h4 {[%clk 00:23:00]} {[%emt 00:00:07]}
Kc6 {[%clk 00:17:54]} {[%emt 00:00:15]} 38. Rh3 {[%clk 00:22:56]} {[%emt
00:00:14]} a5 {[%clk 00:18:00]} {[%emt 00:00:05]} 39. a4 {[%clk 00:23:01]}
{[%emt 00:00:04]} b5 {[%clk 00:18:08]} {[%emt 00:00:02]} 40. axb5+ {[%clk
00:23:07]} {[%emt 00:00:04]} Kxb5 {[%clk 00:18:17]} {[%emt 00:00:02]} 41. h5
{[%clk 00:23:11]} {[%emt 00:00:06]} Ng4 {[%clk 00:17:55]} {[%emt 00:00:32]} 42.
Rg3 {[%clk 00:23:13]} {[%emt 00:00:08]} f5 {[%clk 00:17:38]} {[%emt 00:00:26]}
43. Rf3 {[%clk 00:23:19]} {[%emt 00:00:04]} Rd5 {[%clk 00:17:47]} {[%emt
00:00:01]} 44. Rf1 {[%clk 00:23:16]} {[%emt 00:00:14]} Rc5+ {[%clk 00:17:53]}
{[%emt 00:00:04]} 45. Kb3 {[%clk 00:23:24]} {[%emt 00:00:02]} Re5 {[%clk
00:17:38]} {[%emt 00:00:25]} 46. Ka2 {[%clk 00:23:19]} {[%emt 00:00:14]} Ne3
{[%clk 00:16:53]} {[%emt 00:00:55]} 47. Rf2 {[%clk 00:23:22]} {[%emt 00:00:07]}
Nd5 {[%clk 00:16:40]} {[%emt 00:00:23]} 48. Rf3 {[%clk 00:23:21]} {[%emt
00:00:11]} f4 {[%clk 00:16:34]} {[%emt 00:00:16]} 49. g3 {[%clk 00:23:26]}
{[%emt 00:00:06]} Nb4+ {[%clk 00:16:39]} {[%emt 00:00:04]} 0-1

[Event "FIDE U16 Olympiad_boards_81-124"]
[Site "Eindhoven, Netherlands"]
[Date "2023.08.14"]
[Round "3.8"]
[White "Kazhiakhmetova, Yerkenaz"]
[Black "Cheng, Chao Xin"]
[Result "1/2-1/2"]
[TimeControl "45min+10sec"]
[WhiteElo "1379"]
[BlackElo "1748"]

1. d4 {[%clk 00:45:17]} {[%emt 00:00:03]} d5 {[%clk 00:45:18]} {[%emt
00:00:02]} 2. Nf3 {[%clk 00:45:09]} {[%emt 00:00:18]} Nf6 {[%clk 00:45:26]}
{[%emt 00:00:03]} 3. g3 {[%clk 00:45:18]} {[%emt 00:00:01]} e6 {[%clk
00:45:30]} {[%emt 00:00:06]} 4. Bg2 {[%clk 00:45:26]} {[%emt 00:00:01]} Be7
{[%clk 00:45:38]} {[%emt 00:00:02]} 5. O-O {[%clk 00:45:30]} {[%emt 00:00:05]}
O-O {[%clk 00:45:44]} {[%emt 00:00:05]} 6. c4 {[%clk 00:45:37]} {[%emt
00:00:03]} c6 {[%clk 00:45:47]} {[%emt 00:00:07]} 7. Nc3 {[%clk 00:45:21]}
{[%emt 00:00:26]} dxc4 {[%clk 00:43:31]} {[%emt 00:02:28]} 8. Ne5 {[%clk
00:43:44]} {[%emt 00:01:46]} Nbd7 {[%clk 00:38:55]} {[%emt 00:04:46]} 9. Nxc4
{[%clk 00:43:14]} {[%emt 00:00:39]} Nb6 {[%clk 00:38:08]} {[%emt 00:00:58]} 10.
Ne5 {[%clk 00:39:02]} {[%emt 00:04:22]} Nbd5 {[%clk 00:34:30]} {[%emt
00:03:48]} 11. e4 {[%clk 00:35:38]} {[%emt 00:03:34]} Nb6 {[%clk 00:30:50]}
{[%emt 00:03:50]} 12. Be3 {[%clk 00:33:57]} {[%emt 00:01:51]} h6 {[%clk
00:26:20]} {[%emt 00:04:41]} 13. Qe2 {[%clk 00:30:11]} {[%emt 00:03:55]} Nh7
{[%clk 00:23:32]} {[%emt 00:02:58]} 14. Rfd1 {[%clk 00:29:15]} {[%emt
00:01:06]} Bf6 {[%clk 00:22:10]} {[%emt 00:01:32]} 15. Nc4 {[%clk 00:28:09]}
{[%emt 00:01:16]} Nxc4 {[%clk 00:21:11]} {[%emt 00:01:08]} 16. Qxc4 {[%clk
00:28:15]} {[%emt 00:00:03]} Qc7 {[%clk 00:18:44]} {[%emt 00:02:38]} 17. e5
{[%clk 00:27:38]} {[%emt 00:00:47]} Bd8 {[%clk 00:17:52]} {[%emt 00:01:02]} 18.
Rac1 {[%clk 00:27:07]} {[%emt 00:00:42]} Qe7 {[%clk 00:16:55]} {[%emt
00:01:06]} 19. Ne4 {[%clk 00:27:06]} {[%emt 00:00:12]} Bc7 {[%clk 00:13:28]}
{[%emt 00:03:36]} 20. b4 {[%clk 00:22:29]} {[%emt 00:04:48]} Bd7 {[%clk
00:12:25]} {[%emt 00:01:13]} 21. Nc5 {[%clk 00:22:30]} {[%emt 00:00:09]} Bc8
{[%clk 00:10:19]} {[%emt 00:02:15]} 22. a4 {[%clk 00:20:47]} {[%emt 00:01:52]}
Bb6 {[%clk 00:07:51]} {[%emt 00:02:40]} 23. Ne4 {[%clk 00:19:24]} {[%emt
00:01:33]} f5 {[%clk 00:07:04]} {[%emt 00:00:57]} 24. Nc5 {[%clk 00:18:37]}
{[%emt 00:00:57]} Rb8 {[%clk 00:05:54]} {[%emt 00:01:19]} 25. f4 {[%clk
00:18:20]} {[%emt 00:00:28]} Bd7 {[%clk 00:05:44]} {[%emt 00:00:20]} 26. a5
{[%clk 00:18:01]} {[%emt 00:00:28]} Bxc5 {[%clk 00:04:54]} {[%emt 00:01:00]} 27.
dxc5 {[%clk 00:17:23]} {[%emt 00:00:49]} Rfd8 {[%clk 00:03:44]} {[%emt
00:01:20]} 28. Rd6 {[%clk 00:17:23]} {[%emt 00:00:10]} Nf8 {[%clk 00:03:39]}
{[%emt 00:00:15]} 29. Rcd1 {[%clk 00:17:29]} {[%emt 00:00:04]} Be8 {[%clk
00:03:41]} {[%emt 00:00:08]} 30. Rxd8 {[%clk 00:17:03]} {[%emt 00:00:35]} Rxd8
{[%clk 00:03:49]} {[%emt 00:00:02]} 31. Rxd8 {[%clk 00:17:12]} {[%emt
00:00:01]} Qxd8 {[%clk 00:03:57]} {[%emt 00:00:02]} 32. Qd4 {[%clk 00:17:21]}
{[%emt 00:00:01]} Qxd4 {[%clk 00:03:53]} {[%emt 00:00:15]} 33. Bxd4 {[%clk
00:17:30]} {[%emt 00:00:01]} a6 {[%clk 00:03:34]} {[%emt 00:00:29]} 34. Kf2
{[%clk 00:17:38]} {[%emt 00:00:02]} Kf7 {[%clk 00:03:42]} {[%emt 00:00:02]} 35.
Ke3 {[%clk 00:17:47]} {[%emt 00:00:01]} Ke7 {[%clk 00:03:36]} {[%emt 00:00:16]}
36. Bf3 {[%clk 00:17:50]} {[%emt 00:00:08]} Kf7 {[%clk 00:03:37]} {[%emt
00:00:08]} 37. Bg2 {[%clk 00:17:58]} {[%emt 00:00:02]} g5 {[%clk 00:03:21]}
{[%emt 00:00:26]} 38. Bc3 {[%clk 00:17:54]} {[%emt 00:00:14]} Kg6 {[%clk
00:02:56]} {[%emt 00:00:35]} 39. Bf3 {[%clk 00:17:47]} {[%emt 00:00:17]} gxf4+
{[%clk 00:02:19]} {[%emt 00:00:47]} 40. gxf4 {[%clk 00:17:55]} {[%emt
00:00:02]} Kg7 {[%clk 00:01:09]} {[%emt 00:01:20]} 41. Be1 {[%clk 00:18:00]}
{[%emt 00:00:04]} Bd7 {[%clk 00:01:00]} {[%emt 00:00:20]} 42. Bh5 {[%clk
00:17:58]} {[%emt 00:00:12]} Kh7 {[%clk 00:00:21]} {[%emt 00:00:48]} 43. Bh4
{[%clk 00:17:21]} {[%emt 00:00:48]} Ng6 {[%clk 00:00:25]} {[%emt 00:00:07]} 44.
Bxg6+ {[%clk 00:17:09]} {[%emt 00:00:22]} Kxg6 {[%clk 00:00:33]} {[%emt
00:00:01]} 45. Be1 {[%clk 00:16:58]} {[%emt 00:00:21]} Kh5 {[%clk 00:00:16]}
{[%emt 00:00:27]} 46. Kf3 {[%clk 00:17:07]} {[%emt 00:00:02]} Be8 {[%clk
00:00:22]} {[%emt 00:00:03]} 47. Kg3 {[%clk 00:17:15]} {[%emt 00:00:02]} Kg6
{[%clk 00:00:24]} {[%emt 00:00:08]} 48. Kh4 {[%clk 00:17:21]} {[%emt 00:00:05]}
Kh7 {[%clk 00:00:21]} {[%emt 00:00:12]} 49. Bf2 {[%clk 00:17:29]} {[%emt
00:00:02]} Kg7 {[%clk 00:00:25]} {[%emt 00:00:06]} 50. Be1 {[%clk 00:17:37]}
{[%emt 00:00:02]} Kh7 {[%clk 00:00:20]} {[%emt 00:00:15]} 51. Kg3 {[%emt
00:00:06]} 1/2-1/2

[Event "FIDE U16 Olympiad_boards_81-124"]
[Site "Eindhoven, Netherlands"]
[Date "2023.08.14"]
[Round "3.9"]
[White "Hashimoto, Shunji"]
[Black "Bogdanov, Artyom"]
[Result "0-1"]
[TimeControl "45min+10sec"]
[WhiteElo "1789"]
[BlackElo "1852"]

1. d4 {[%clk 00:45:18]} {[%emt 00:00:02]} Nf6 {[%clk 00:45:19]} {[%emt
00:00:02]} 2. Nf3 {[%clk 00:45:25]} {[%emt 00:00:02]} e6 {[%clk 00:45:28]}
{[%emt 00:00:01]} 3. Bf4 {[%clk 00:45:33]} {[%emt 00:00:02]} c5 {[%clk
00:45:37]} 4. e3 {[%clk 00:45:42]} {[%emt 00:00:02]} Nc6 {[%clk 00:45:46]}
{[%emt 00:00:01]} 5. c3 {[%clk 00:45:35]} {[%emt 00:00:17]} Be7 {[%clk
00:45:35]} {[%emt 00:00:20]} 6. h3 {[%clk 00:45:29]} {[%emt 00:00:16]} b6
{[%clk 00:45:08]} {[%emt 00:00:38]} 7. Nbd2 {[%clk 00:45:23]} {[%emt 00:00:16]}
cxd4 {[%clk 00:44:36]} {[%emt 00:00:41]} 8. exd4 {[%clk 00:45:24]} {[%emt
00:00:09]} Bb7 {[%clk 00:44:39]} {[%emt 00:00:07]} 9. Bd3 {[%clk 00:44:59]}
{[%emt 00:00:34]} d6 {[%clk 00:44:35]} {[%emt 00:00:14]} 10. Qe2 {[%clk
00:43:41]} {[%emt 00:01:28]} O-O {[%clk 00:41:39]} {[%emt 00:03:07]} 11. O-O
{[%clk 00:42:43]} {[%emt 00:01:08]} Re8 {[%clk 00:40:04]} {[%emt 00:01:45]} 12.
Nc4 {[%clk 00:37:09]} {[%emt 00:05:44]} h6 {[%clk 00:36:09]} {[%emt 00:04:06]}
13. Rfe1 {[%clk 00:31:54]} {[%emt 00:05:25]} Bf8 {[%clk 00:33:41]} {[%emt
00:02:38]} 14. Qd2 {[%clk 00:30:38]} {[%emt 00:01:26]} Rc8 {[%clk 00:30:41]}
{[%emt 00:03:10]} 15. a4 {[%clk 00:24:38]} {[%emt 00:06:09]} a6 {[%clk
00:23:37]} {[%emt 00:07:14]} 16. Qd1 {[%clk 00:20:46]} {[%emt 00:04:02]} Rb8
{[%clk 00:19:00]} {[%emt 00:04:47]} 17. Qc2 {[%clk 00:14:51]} {[%emt 00:06:06]}
Qc7 {[%clk 00:17:05]} {[%emt 00:02:05]} 18. Ncd2 {[%clk 00:13:46]} {[%emt
00:01:14]} Rbc8 {[%clk 00:16:18]} {[%emt 00:00:57]} 19. Rac1 {[%clk 00:13:10]}
{[%emt 00:00:45]} Qd8 {[%clk 00:15:14]} {[%emt 00:01:15]} 20. Qb1 {[%clk
00:12:43]} {[%emt 00:00:37]} Qd7 {[%clk 00:12:01]} {[%emt 00:03:23]} 21. Ne4
{[%clk 00:10:47]} {[%emt 00:02:06]} Nxe4 {[%clk 00:11:14]} {[%emt 00:00:57]} 22.
Bxe4 {[%clk 00:10:54]} {[%emt 00:00:03]} Na5 {[%clk 00:10:50]} {[%emt
00:00:34]} 23. Bxb7 {[%clk 00:09:44]} {[%emt 00:01:19]} Qxb7 {[%clk 00:10:55]}
{[%emt 00:00:05]} 24. Nd2 {[%clk 00:08:58]} {[%emt 00:00:57]} Qd5 {[%clk
00:10:15]} {[%emt 00:00:50]} 25. Qd3 {[%clk 00:08:02]} {[%emt 00:01:06]} b5
{[%clk 00:08:27]} {[%emt 00:01:58]} 26. axb5 {[%clk 00:06:17]} {[%emt
00:01:55]} axb5 {[%clk 00:08:35]} {[%emt 00:00:02]} 27. Rb1 {[%clk 00:03:54]}
{[%emt 00:02:33]} Nc4 {[%clk 00:08:36]} {[%emt 00:00:09]} 28. b3 {[%clk
00:03:39]} {[%emt 00:00:25]} Nxd2 {[%clk 00:08:43]} {[%emt 00:00:03]} 29. Qxd2
{[%clk 00:03:33]} {[%emt 00:00:15]} Rc6 {[%clk 00:08:22]} {[%emt 00:00:32]} 30.
Rec1 {[%clk 00:03:16]} {[%emt 00:00:27]} Rec8 {[%clk 00:08:25]} {[%emt
00:00:08]} 31. Qe3 {[%clk 00:02:12]} {[%emt 00:01:13]} Qf5 {[%clk 00:05:20]}
{[%emt 00:03:15]} 32. Ra1 {[%clk 00:01:14]} {[%emt 00:01:08]} Qd5 {[%clk
00:04:25]} {[%emt 00:01:05]} 33. Rab1 {[%clk 00:01:22]} {[%emt 00:00:02]} Ra6
{[%clk 00:03:59]} {[%emt 00:00:36]} 34. Qd3 {[%clk 00:00:48]} {[%emt 00:00:44]}
Rac6 {[%clk 00:03:17]} {[%emt 00:00:52]} 35. Qe3 {[%clk 00:00:38]} {[%emt
00:00:20]} Kh7 {[%clk 00:03:14]} {[%emt 00:00:13]} 36. Qd3+ {[%clk 00:00:24]}
{[%emt 00:00:24]} g6 {[%clk 00:03:17]} {[%emt 00:00:07]} 37. Qd2 {[%clk
00:00:25]} {[%emt 00:00:09]} Bg7 {[%clk 00:03:04]} {[%emt 00:00:24]} 38. Be3
{[%clk 00:00:20]} {[%emt 00:00:14]} Qe4 {[%clk 00:02:06]} {[%emt 00:01:08]} 39.
Ra1 {[%clk 00:00:14]} {[%emt 00:00:15]} d5 {[%clk 00:01:57]} {[%emt 00:00:20]}
40. Ra5 {[%clk 00:00:17]} {[%emt 00:00:06]} b4 {[%clk 00:02:06]} {[%emt
00:00:02]} 41. Rc5 {[%clk 00:00:13]} {[%emt 00:00:15]} Rxc5 {[%clk 00:02:06]}
{[%emt 00:00:09]} 42. dxc5 {[%clk 00:00:21]} {[%emt 00:00:02]} bxc3 {[%clk
00:02:15]} {[%emt 00:00:01]} 43. Qe2 {[%clk 00:00:18]} {[%emt 00:00:13]} d4
{[%clk 00:02:19]} {[%emt 00:00:06]} 44. Qc4 {[%clk 00:00:22]} {[%emt 00:00:06]}
Qe5 {[%clk 00:01:52]} {[%emt 00:00:36]} 45. b4 {[%clk 00:00:12]} {[%emt
00:00:21]} dxe3 {[%clk 00:01:59]} {[%emt 00:00:03]} 0-1

[Event "FIDE U16 Olympiad_boards_81-124"]
[Site "Eindhoven, Netherlands"]
[Date "2023.08.14"]
[Round "3.10"]
[White "Smirnov, Mark"]
[Black "Muto, Yuhiro"]
[Result "1-0"]
[TimeControl "45min+10sec"]
[WhiteElo "1936"]
[BlackElo "1626"]

1. e4 {[%clk 00:45:17]} {[%emt 00:00:03]} e5 {[%clk 00:45:19]} {[%emt
00:00:02]} 2. Nc3 {[%clk 00:45:25]} {[%emt 00:00:02]} Nf6 {[%clk 00:45:27]}
{[%emt 00:00:02]} 3. g3 {[%clk 00:45:33]} {[%emt 00:00:02]} d5 {[%clk
00:45:35]} {[%emt 00:00:02]} 4. exd5 {[%clk 00:45:41]} {[%emt 00:00:02]} Nxd5
{[%clk 00:45:42]} {[%emt 00:00:02]} 5. Bg2 {[%clk 00:45:50]} {[%emt 00:00:02]}
Nxc3 {[%clk 00:45:50]} {[%emt 00:00:01]} 6. bxc3 {[%clk 00:45:58]} {[%emt
00:00:02]} Bc5 {[%clk 00:45:59]} {[%emt 00:00:01]} 7. Nf3 {[%clk 00:46:05]}
{[%emt 00:00:04]} Nc6 {[%clk 00:46:05]} {[%emt 00:00:03]} 8. O-O {[%clk
00:46:08]} {[%emt 00:00:07]} O-O {[%clk 00:46:13]} {[%emt 00:00:03]} 9. d3
{[%clk 00:46:14]} {[%emt 00:00:04]} h6 {[%clk 00:44:55]} {[%emt 00:01:27]} 10.
Re1 {[%clk 00:41:51]} {[%emt 00:04:33]} Re8 {[%clk 00:43:24]} {[%emt 00:01:41]}
11. Rb1 {[%clk 00:38:30]} {[%emt 00:03:32]} Bb6 {[%clk 00:37:59]} {[%emt
00:05:34]} 12. Nd2 {[%clk 00:33:13]} {[%emt 00:05:27]} Be6 {[%clk 00:31:52]}
{[%emt 00:06:18]} 13. a4 {[%clk 00:33:02]} {[%emt 00:00:20]} Ba2 {[%clk
00:27:47]} {[%emt 00:04:14]} 14. Rb2 {[%clk 00:26:56]} {[%emt 00:06:18]} Bd5
{[%clk 00:27:52]} {[%emt 00:00:04]} 15. Bxd5 {[%clk 00:26:08]} {[%emt
00:00:58]} Qxd5 {[%clk 00:28:00]} {[%emt 00:00:03]} 16. Qg4 {[%clk 00:21:43]}
{[%emt 00:04:34]} Re6 {[%clk 00:23:54]} {[%emt 00:04:17]} 17. Rb5 {[%clk
00:21:07]} {[%emt 00:00:45]} Qd8 {[%clk 00:21:43]} {[%emt 00:02:21]} 18. Nc4
{[%clk 00:20:12]} {[%emt 00:01:04]} f5 {[%clk 00:10:48]} {[%emt 00:11:07]} 19.
Qh5 {[%clk 00:19:26]} {[%emt 00:00:54]} a6 {[%clk 00:07:28]} {[%emt 00:03:32]}
20. Rb1 {[%clk 00:18:27]} {[%emt 00:01:09]} Qf6 {[%clk 00:02:26]} {[%emt
00:05:12]} 21. Nxb6 {[%clk 00:17:47]} {[%emt 00:00:49]} cxb6 {[%clk 00:02:33]}
{[%emt 00:00:03]} 22. Rxb6 {[%clk 00:17:54]} {[%emt 00:00:03]} e4 {[%clk
00:02:02]} {[%emt 00:00:42]} 23. Bb2 {[%clk 00:15:19]} {[%emt 00:02:44]} exd3
{[%clk 00:01:30]} {[%emt 00:00:42]} 24. Rxe6 {[%clk 00:14:51]} {[%emt
00:00:37]} Qxe6 {[%clk 00:01:38]} {[%emt 00:00:03]} 25. cxd3 {[%clk 00:14:43]}
{[%emt 00:00:17]} Re8 {[%clk 00:00:45]} {[%emt 00:01:03]} 26. Rxb7 {[%clk
00:13:52]} {[%emt 00:01:01]} Qe1+ {[%clk 00:00:40]} {[%emt 00:00:16]} 27. Kg2
{[%clk 00:13:57]} {[%emt 00:00:05]} Ne5 {[%clk 00:00:22]} {[%emt 00:00:28]} 28.
Qxe8+ {[%clk 00:14:04]} {[%emt 00:00:04]} Kh7 {[%clk 00:00:28]} {[%emt
00:00:04]} 29. c4 {[%clk 00:14:06]} {[%emt 00:00:07]} Qe2 {[%clk 00:00:17]}
{[%emt 00:00:20]} 30. Bxe5 {[%clk 00:14:07]} {[%emt 00:00:10]} Qxd3 {[%clk
00:00:17]} {[%emt 00:00:10]} 31. Rxg7# {[%clk 00:14:14]} {[%emt 00:00:03]} 1-0